Cogmind - Beta 14 @@@ ROGUE MODE // 2024.11.11 @ 16:41:24 Player: Fangrelle Result: Destroyed by G-47 Trooper with Particle Gun Performance ------------- Evolutions (0) 0 Regions Visited (2) 400 Robots Destroyed (29) 145 Value Destroyed (632) 632 Prototype IDs (0) 0 Alien Tech Used (0) 0 Bonus (-16) -16 TOTAL SCORE: 1161 Bonus ------- High Alert Combat Kills 18 Friendly Fire -34 Cogmind --------- Core Integrity 0/250 Matter 181/300 Energy 79/100 System Corruption 0% Temperature Cool (9) Movement Core (200) Ox3 Location -10/Mines Parts ------- > --- POWER (1) -------- (None) > --- PROPULSION (2) --- (None) > --- UTILITY (2) ------ Small Storage Unit > --- WEAPON (2) ------- Rocket Launcher Mining Claw > --- INVENTORY (8) ---- Huge Storage Unit Compact Matter Pod (150) Signal Interpreter Hacking Suite Recalibrator Peak State ------------ > --- POWER ------------ Ion Engine > --- PROPULSION ------- Wheel Wheel > --- UTILITY ---------- Small Storage Unit Seismic Detector > --- WEAPON ----------- Medium Laser Rocket Launcher > --- INVENTORY -------- Huge Storage Unit Compact Matter Pod Signal Interpreter Hacking Suite Recalibrator Medium Laser Grenade Launcher Mining Claw [Rating: 9] Favorites ----------- Power Ion Engine Engine Ion Engine Propulsion Light Treads Treads Light Treads Leg Aluminum Leg Wheel Wheel Utility Small Storage Unit Device Seismic Detector Storage Small Storage Unit Weapon Medium Laser Energy Gun Medium Laser Launcher Grenade Launcher Slashing Weapon Mining Claw Build | -11 -10 -10 ------- Run | Yrd Mat Min Slots Evolved . | . . . Power . | . . . Propulsion . | . . . Utility . | . . . Weapon . | . . . Parts Attached 14 | 2 5 7 Power . | . . . Engine . | . . . Core . | . . . Reactor . | . . . Propulsion 4 | 2 . 2 Treads 2 | 2 . . Leg . | . . . Wheel 2 | . . 2 Hover . | . . . Flight . | . . . Utility 1 | . 1 . Device 1 | . 1 . Storage . | . . . Processor . | . . . Hackware . | . . . Protection . | . . . Artifact . | . . . Weapon 9 | . 4 5 Energy Gun 3 | . 2 1 Energy Cannon . | . . . Ballistic Gun . | . . . Ballistic Cannon . | . . . Launcher 5 | . 2 3 Special Weapon . | . . . Impact Weapon . | . . . Slashing Weapon 1 | . . 1 Piercing Weapon . | . . . Special Melee Weapon . | . . . Unidentified Prototypes . | . . . Parts Lost 8 | . . 8 Power 1 | . . 1 Propulsion 3 | . . 3 Utility 1 | . . 1 Weapon 3 | . . 3 Highest Loss Streak 5 | . . 5 To Critical Strikes . | . . . Average Slot Usage (%) 89 | . 97 86 Engine 11 | . 14 10 Treads 13 | . 28 7 Wheel 10 | . . 14 Device 10 | . 11 10 Storage 14 | . 14 14 Energy Gun 24 | . 24 24 Launcher 3 | . 3 3 Peak Build Rating 9 | 6 8 9 Average Rating 7 | 6 7 7 On Entrance 6 | 6 6 8 Naked Turns . | . . . Heaviest Build 16 | 14 16 15 Greatest Support 40 | 40 40 40 Greatest Overweight (x) 3 | . . 3 Average Overweight (x) . | . . . Largest Inventory Capacity 8 | 8 8 8 Average Capacity 8 | 8 8 8 Most Carried 8 | 6 8 8 Average Carried 7 | 5 6 7 Final Capacity 8 | 8 8 8 Final Carried 8 | 4 8 5 Class Distribution -------------------- 100% | Mutant Dominant Class ---------------- Mutant | -10/Materials Mutant | -10/Mines Resources | -11 -10 -10 ----------- Run | Yrd Mat Min Matter Collected 477 | 200 90 187 Remotely . | . . . Salvage Created 466 | . 235 231 Parts 43 | . 26 17 Haulers Intercepted . | . . . Recyclers Shooed . | . . . Parts Field Recycled . | . . . Retrieved Matter . | . . . Parts Self-Destructed . | . . . Prevented . | . . . Kills | -11 -10 -10 ------- Run | Yrd Mat Min Combat Hostiles Destroyed 21 | . 14 7 Guns 7 | . 3 4 AOE 13 | . 10 3 Classes Destroyed 7 | . 5 2 Worker 1 | . . 1 Tunneler 1 | . . 1 Mechanic 2 | . 1 1 Operator 2 | . 2 . Watcher 2 | . 2 . Swarmer 9 | . 9 . Grunt 12 | . 5 7 Best Kill Streak 5 | . 5 5 Combat Bots Only 4 | . 3 4 Max Kills in Single Turn 3 | . 3 2 Gunslinging . | . . . Exploded 3 | . 3 1 Melee . | . . . Uniques/NPCs Destroyed . | . . . Combat | -11 -10 -10 -------- Run | Yrd Mat Min Hostile Shots Fired 74 | . 37 37 Missed 15 | . 9 6 Damage Taken 884 | . 333 551 Core 259 | . 77 182 Absorbed by Shields . | . . . Core Remaining (%) 100 | 100 . . Volleys Fired 54 | . 27 27 Largest 2 | . 2 2 Hottest 100 | . 100 100 Shots Fired 98 | . 53 45 Gun 74 | . 41 33 Cannon . | . . . Launcher 24 | . 12 12 Special . | . . . Kinetic . | . . . Thermal 74 | . 41 33 Explosive 24 | . 12 12 Electromagnetic . | . . . Robot Hit Streak 7 | . 7 7 Robot Miss Streak 3 | . 2 3 Penetration Max . | . . . Secondary Targets . | . . . Shots Hit Robots 51 | . 27 24 Core Hits 44 | . 24 20 Critical Kills . | . . . Critical Parts Destroyed . | . . . Critical Strikes 4 | . 3 1 Burn 4 | . 3 1 Melee Attacks . | . . . Impact . | . . . Slashing . | . . . Piercing . | . . . Sneak Attacks . | . . . Combat Hostiles . | . . . Follow-up Attacks . | . . . Damage Inflicted 1992 | . 1182 810 Guns 554 | . 312 242 Cannons . | . . . Explosions 1428 | . 860 568 Melee . | . . . Ramming 10 | . 10 . Kinetic . | . . . Thermal 554 | . 312 242 Explosive 1428 | . 860 568 Electromagnetic . | . . . Impact . | . . . Slashing . | . . . Piercing . | . . . Highest Corruption . | . . . Average Corruption . | . . . Corruption Purged . | . . . Corruption Blocked . | . . . Overload Shots . | . . . Overflow Damage 48 | . 35 13 Projectiles . | . . . Explosions 48 | . 35 13 Melee . | . . . Knockbacks . | . . . Impact . | . . . Kinetic . | . . . Secondary . | . . . Self-Inflicted Damage 232 | . 58 174 Shots 8 | . 2 6 Rammed 1 | . 1 . Targets Rammed 1 | . 1 . Kicked . | . . . Crushed . | . . . Highest Temperature 418 | . 180 418 Average Temperature 116 | . 47 198 Received Heat Transfer 333 | . 96 237 Effects 2 | . . 2 Energy Bleed 1 | . . 1 Matter Decay 1 | . . 1 Siege Activations . | . . . Robots Corrupted . | . . . Combat Hostiles . | . . . Parts Fried . | . . . Impact Corruptions . | . . . Robots Melted 1 | . 1 . Combat Hostiles 1 | . 1 . Parts Melted 6 | . 5 1 Heat Transferred 1924 | . 1147 777 Parts Sabotaged . | . . . Parts Stolen . | . . . Parts Stripped . | . . . Power Chain Reactions . | . . . Alert | -11 -10 -10 ------- Run | Yrd Mat Min Peak Influence 469 | . 469 131 Initial 116 | . . 116 Average 115 | . 238 66 Maximum Alert Level 2 | . 2 . Low Security (%) 83 | 100 43 100 Level 1 6 | . 21 . Level 2 10 | . 34 . Level 3 . | . . . Level 4 . | . . . Level 5 . | . . . High Security . | . . . Max Security . | . . . Squads Dispatched 4 | . 3 1 Investigation 1 | . 1 . Extermination . | . . . Reinforcement 2 | . 2 . Assault 1 | . . 1 Garrison . | . . . Intercept . | . . . Searches Triggered . | . . . Construction Impeded . | . . . Haulers Reinforced . | . . . Active Scanning Responses . | . . . Cargo Convoy Interrupts . | . . . Stealth | -11 -10 -10 --------- Run | Yrd Mat Min Distress Signals . | . . . Communications Jammed . | . . . Distress Signals . | . . . Times Spotted 31 | . 21 10 Peak Tracking Total 5 | . 5 3 Tactical Retreats . | . . . Traps | -11 -10 -10 ------- Run | Yrd Mat Min Traps Triggered . | . . . Indirectly . | . . . Trap Hack Attempts . | . . . Triggered . | . . . Disarmed . | . . . Reprogrammed . | . . . Reused . | . . . Traps Extracted . | . . . Installed . | . . . Triggered . | . . . Machines | -11 -10 -10 ---------- Run | Yrd Mat Min Machines Disabled 1 | . 1 . Max in Single Turn 1 | . 1 . Machines Repaired . | . . . Machines Dismantled . | . . . Machines Sabotaged . | . . . Overloaded Fab Kills . | . . . Hacking | -11 -10 -10 --------- Run | Yrd Mat Min Machines Accessed 3 | . 3 . Terminals 2 | . 2 . Fabricators . | . . . Repair Stations . | . . . Recycling Units 1 | . 1 . Scanalyzers . | . . . Garrison Access . | . . . Total Hacks 9 | . 9 . Successful 5 | . 5 . Failed 4 | . 4 . Catastrophic . | . . . Database Lockouts . | . . . Manual 9 | . 9 . Terminals 7 | . 7 . Fabricators . | . . . Repair Stations . | . . . Recycling Units 2 | . 2 . Scanalyzers . | . . . Garrison Access . | . . . Terminal Hacks . | . . . Fabricator Hacks . | . . . Repair Station Hacks . | . . . Recycling Unit Hacks . | . . . Scanalyzer . | . . . Garrison Access Hacks . | . . . Unauthorized Hacks 5 | . 5 . Terminals 4 | . 4 . Assimilate 1 | . 1 . Botnet 2 | . 2 . Operators 1 | . 1 . Fabricators . | . . . Repair Stations . | . . . Recycling Units 1 | . 1 . Tunnel 1 | . 1 . Scanalyzers . | . . . Garrison Access . | . . . Data Cores Recovered . | . . . Used . | . . . Hacking Detections 3 | . 3 . Full Trace Events . | . . . Feedback Events . | . . . Feedback Blocked . | . . . Robot Schematics Acquired . | . . . Robots Built . | . . . Authchips . | . . . Time . | . . . Total Robot Build Rating . | . . . Part Schematics Acquired . | . . . Parts Built . | . . . Authchips . | . . . Time . | . . . Total Part Build Rating . | . . . Parts Repaired . | . . . Time . | . . . Parts Recycled . | . . . Recycled Matter . | . . . Retrieved Matter . | . . . Retrieved Components . | . . . Parts Scanalyzed . | . . . Part Schematics Acquired . | . . . Parts Damaged . | . . . Bothacking | -11 -10 -10 ------------ Run | Yrd Mat Min Used RIF Installer . | . . . Robots Hacked . | . . . Non-combat . | . . . Combat . | . . . Robot Hacks Applied . | . . . Relay Couplers Released . | . . . Fabnet Peak Effective % . | . . . Robots Rewired . | . . . Allies Hacked . | . . . Hacks Repelled . | . . . Allies | -11 -10 -10 -------- Run | Yrd Mat Min Total Allies 1 | . . 1 Largest Group 1 | . . 1 Highest-Rated Group 31 | . . 31 Highest-Rated Ally 31 | . . 31 Total Orders . | . . . Ally Attacks . | . . . Total Damage . | . . . Kills . | . . . Allies Corrupted . | . . . Allies Melted . | . . . Intel | -11 -10 -10 ------- Run | Yrd Mat Min Robot Analysis Total . | . . . Derelict Logs Recovered 1 | . . 1 Drone Launches . | . . . Drone Recoveries . | . . . Exploration | -11 -10 -10 ------------- Run | Yrd Mat Min Turns Passed 1469 | 4 422 1043 Spaces Moved 850 | 1 205 644 Core 101 | . . 101 Treads 363 | 1 205 157 Legs . | . . . Wheels 386 | . . 386 Hover . | . . . Flight . | . . . Fastest Speed 80 | 160 160 80 Average Speed 128 | 160 160 118 Slowest Speed 200 | 160 160 200 Overloaded Moves . | . . . Propulsion Burnouts . | . . . Robots Hopped . | . . . Cave-ins Triggered . | . . . Exploration Rate (%) 48 | 1 45 98 Regions Visited 2 Branch Regions 1 Pre-discovered Areas 2 | . 1 1 Known Exits Taken . | . . . Unknown Exits Taken 2 | 1 1 . Scrap Searched 1 | . . 1 Spaces Dug 32 | . . 32 Terrain Destroyed 173 | . 55 118 Melee . | . . . Projectile . | . . . AOE 173 | . 55 118 Terrain Rammed . | . . . Walls Destroyed . | . . . Machines Disabled . | . . . Actions | -11 -10 -10 --------- Run | Yrd Mat Min Total 1129 | 4 243 882 Wait 197 | . 2 195 Move 848 | . 204 644 Hop . | . . . Pick Up 9 | . 4 5 Fast Attach 1 | . 1 . Attach 5 | . . 5 Detach . | . . . Swap 8 | 2 4 2 Drop 6 | 2 . 4 Fire 54 | . 27 27 Melee . | . . . Ram . | . . . Kick . | . . . Crush 1 | . 1 . Escape Stasis . | . . . Rewire . | . . . Trap . | . . . Miscellaneous . | . . . Route ------- -11/Scrapyard -10/Materials (discovered 3 exits: [*Mat x2] / [*Min]) -10/Mines (discovered 3 exits: [*Mat x2] / [*Sub]) History --------- Turn | Location | Event 5 | -11/Scrapyard | Discovered new exit (range 0) 5 | -11/Scrapyard | Entered Materials 183 | -10/Materials | Discovered new exit (range 11) 255 | -10/Materials | Discovered new exit (range 13) 305 | -10/Materials | Build established: Mutant 398 | -10/Materials | Discovered new exit (range 6) 427 | -10/Materials | Entered Mines 458 | -10/Mines | Met a Derelict bent on vengeance 526 | -10/Mines | Received a Rocket Launcher from a helpful Derelict 746 | -10/Mines | Met a Derelict testing a Signal Generator 1091 | -10/Mines | Core integrity fell below 50% 1141 | -10/Mines | Discovered new exit (range 9) 1166 | -10/Mines | Discovered new exit (range 12) 1235 | -10/Mines | Core integrity fell below 20% 1266 | -10/Mines | Lost 5 parts (1p2n1u1w) 1287 | -10/Mines | Discovered new exit (range 7) 1470 | -10/Mines | Destroyed by G-47 Trooper with Particle Gun Last Messages --------------- 01218_ T-07 Excavator is excavating. 01223_ Med. Laser destroyed. 01226_ T-07 Excavator is excavating. 01231_ Seismic Detector destroyed. 01234_ G-34 Mercenary suffers critical hit (Burn). 01234_ Wheel destroyed. 01234_ Destroyed Wheel. 01234_ T-07 Excavator destroyed. 01235_ Ion Engine destroyed. 01237_ G-34 Mercenary destroyed. 01239_ Overheating: Matter decay (-39). 01245_ The unstable cave ceiling collapses. 01253_ Overheating: Energy bleed (-10). 01256_ The unstable cave ceiling collapses. 01287_ EXIT=FOUND 01309_ The unstable cave ceiling collapses. 01464_ Med. Laser destroyed. 01464_ Destroyed Med. Laser. 01464_ Grenade Launcher destroyed. 01464_ Destroyed Grenade Launcher. Map ----- +----------------------------------------------------+ | ??????????? ?????# # ##??# | | ??????????? ?????## #####???# | | ???????????# ????## % ##?????### | | ???????????# #????# ##??????# | | ???????????# #????# #??????? | | ???????##### #???## #??????? | | ???????# ##### #??????? | | ???????# ###### #??????? | | ????#### ##### !%= ##??????? | | ????# ### ####???????? | | ????# ##?# #??????????? | | ????# ##### #??# #?????????## | | ????# #???## #?# ########### | | ???## ####### #?# ## =% | | ???# ## ### ##?# ## %######## | | ???# ! #####??# =!######## | | ???## ##????#### | | ????#! ! #???????# ###### | | ????## ### #???????# #????# | | ?????## #?## ##???????# #????# | | ??????# #??####????????# #????# | | ??##??# #??????????????# #???## | | ?## ?# ##?????????????# #???# | | ?# # #?###???###???# #???# | | ?# g ### ##### ##??# #???# | | ?# g @ #### #??#< | | ?# ### ## #??## | | ?# ####?######## #???#### | | ?# ?????????????## #??????? | | ?# ??????????????## ##??????? | | ?###????????????????######???????? | | ?????????????????????????????????? | | ?????????????????????????????????? | | ?????????????????????????????????? | | | | | | | | | | | | | | | | | | | | | | | | | | | | | | | | | +----------------------------------------------------+ Best States ------------- Heat Dissipation 25 Energy Generation 10 Energy Capacity 250 Matter Stores 300 Matter Capacity 300 Sight Range 16 Terrain Scan Density 10 Evasion (%) 44 Recoil Reduction 2 Item Schematics ----------------- None Robot Schematics ------------------ None Fabricated ------------ Nothing Alien Tech Used ----------------- None Achievements -------------- None Challenges ------------ None Game ------ Seed FrostConcussiveRay Manual? 0 Play Time 00:10:13 Cumulative 52.0 hours Start 2024.11.11 @ 16:34:35 End 2024.11.11 @ 16:41:24 Sessions 1 Manual Loads 0 Difficulty Rogue Special Mode None Game No. 100 Rogue 100 Adventurer 0 Explorer 0 Win Type - Total 0 Types 0/0/0/0/0/0/0/0/0 Lore% 37 Gallery% 31 Achievement% 32 Wizard Run 0 Options --------- Layout 0 ASCII 0 Keyboard 0 Movement Mouse Keybinds 0 Fullscreen 1 Font 24/Smallcaps Map View 91x25 Zoom Use 92% Tactical HUD 1 Map Filters NONE Filters NONE Steam 1 RUN: 448ee607-a2d0-47ec-b41e-d074d2f39793